fUST/lending_fUST_20250830
["ID","MTS","AMOUNT","RATE_DAILY","PERIOD"]
[382262873,1756553447401,-480.0,0.00019178,2]
[382262874,1756553447411,-480.0,0.00019178,2]
[382262875,1756553447422,-480.0,0.00019178,2]
[382262876,1756553447431,-1257.78,0.00019178,2]
[382262877,1756553447441,-811.32,0.00019178,2]
[382262878,1756553447451,-1267.65,0.00019178,2]
[382262879,1756553447460,-1944.37,0.00019178,2]
[382262880,1756553447470,-1119.15,0.00019178,2]
[382262881,1756553447480,-669.82,0.00019178,2]
[382262882,1756553447489,-1397.49,0.00019178,2]
[382262883,1756553447498,-480.0,0.00019178,2]
[382262884,1756553447508,-480.0,0.00019178,2]
[382262885,1756553447518,-480.0,0.00019178,2]
[382262886,1756553447527,-5070.0,0.00019178,2]
[382262887,1756553447536,-1489.35,0.00019178,2]
[382262888,1756553447546,-480.0,0.00019178,2]
[382262889,1756553447556,-480.0,0.00019178,2]
[382262890,1756553447566,-480.0,0.00019178,2]
[382262891,1756553447575,-480.0,0.00019178,2]
[382262892,1756553447584,-152.40833,0.00019178,2]
[382262893,1756553447594,-347.14759105,0.00019178,2]
[382262894,1756553447603,-480.0,0.00019178,2]
[382262895,1756553447613,-1434.41,0.00019178,2]
[382262896,1756553447622,-812.46,0.00019178,2]
[382262897,1756553447633,-480.0,0.00019178,2]
[382262898,1756553447643,-480.0,0.00019178,2]
[382262899,1756553447653,-1430.34,0.00019178,2]
[382262900,1756553447663,-649.82,0.00019178,2]
[382262901,1756553447673,-7434.27,0.00019178,2]
[382262902,1756553447683,-601.77719514,0.00019178,2]
[382262903,1756553447693,-363.99441188,0.00019178,2]
[382262904,1756553447702,-500.19,0.00019178,2]
[382262905,1756553447712,-481.28767481,0.00019178,2]
[382262906,1756553447722,-480.0,0.00019178,2]
[382262907,1756553447733,-553.19,0.00019178,2]
[382262908,1756553447742,-480.0,0.00019178,2]
[382262909,1756553447752,-886.5,0.00019178,2]
[382262910,1756553447762,-480.0,0.00019178,2]
[382262911,1756553447772,-151.0,0.00019178,2]
[382262912,1756553447782,-2079.82,0.00019178,2]
[382262913,1756553447791,-480.0,0.00019178,2]
[382262914,1756553447801,-557.59,0.00019178,2]
[382262915,1756553447810,-1044.85,0.00019178,2]
[382262916,1756553447820,-480.0,0.00019178,2]
[382262917,1756553447829,-1097.39,0.00019178,2]
[382262918,1756553447838,-480.0,0.00019178,2]
[382262919,1756553447848,-480.0,0.00019178,2]
[382262920,1756553447995,-560.71,0.00019178,2]
[382262921,1756553448008,-480.0,0.00019178,2]
[382262922,1756553448018,-535.55,0.00019178,2]
[382262923,1756553448028,-589.15,0.00019178,2]
[382262924,1756553448040,-608.1,0.00019178,2]
[382262925,1756553448050,-480.0,0.00019178,2]
[382262926,1756553448059,-1469.47,0.00019178,2]
[382262927,1756553448069,-436.54703766,0.00019178,2]
[382262928,1756553448079,-480.0,0.00019178,2]
[382262929,1756553448088,-1152.15,0.00019178,2]
[382262930,1756553448098,-636.31,0.00019178,2]
[382262931,1756553448108,-665.24,0.00019178,2]
[382262932,1756553448118,-480.0,0.00019178,2]
[382262933,1756553448127,-1423.13,0.00019178,2]
[382262934,1756553448137,-480.0,0.00019178,2]
[382262935,1756553448146,-1933.31,0.00019178,2]
[382262936,1756553448156,-480.0,0.00019178,2]
[382262937,1756553448166,-885.14,0.00019178,2]
[382262938,1756553448175,-480.0,0.00019178,2]
[382262939,1756553448185,-480.0,0.00019178,2]
[382262940,1756553448196,-1234.24,0.00019178,2]
[382262941,1756553448206,-480.0,0.00019178,2]
[382262942,1756553448216,-1506.47,0.00019178,2]
[382262943,1756553448225,-480.0,0.00019178,2]
[382262944,1756553448235,-977.23,0.00019178,2]
[382262945,1756553448246,-480.0,0.00019178,2]
[382262946,1756553448256,-480.0,0.00019178,2]
[382262947,1756553448265,-480.0,0.00019178,2]
[382262948,1756553448274,-500.0,0.00019178,2]
[382262949,1756553448285,-500.0,0.00019178,2]
[382262950,1756553448294,-500.0,0.00019178,2]
[382262951,1756553448304,-500.0,0.00019178,2]
[382262952,1756553448314,-480.0,0.00019178,2]
[382262953,1756553448324,-500.0,0.00019178,2]
[382262954,1756553448333,-500.0,0.00019178,2]
[382262955,1756553448343,-500.0,0.00019178,2]
[382262956,1756553448352,-1152.51,0.00019178,2]
[382262957,1756553448362,-512.71,0.00019178,2]
[382262958,1756553448371,-480.0,0.00019178,2]
[382262959,1756553448381,-1576.37,0.00019178,2]
[382262960,1756553448391,-480.0,0.00019178,2]
[382262961,1756553448401,-480.0,0.00019178,2]
[382262962,1756553448410,-480.0,0.00019178,2]
[382262963,1756553448420,-480.0,0.00019178,2]
[382262964,1756553448429,-480.0,0.00019178,2]
[382262965,1756553448439,-480.0,0.00019178,2]
[382262966,1756553448449,-4558.32,0.00019178,2]
[382262967,1756553448458,-480.0,0.00019178,2]
[382262968,1756553448467,-1400.88,0.00019178,2]
[382262969,1756553448476,-480.0,0.00019178,2]
[382262970,1756553448486,-480.0,0.00019178,2]
[382262971,1756553448495,-480.0,0.00019178,2]
[382262972,1756553448505,-480.0,0.00019178,2]
[382262973,1756553448515,-659.51,0.00019178,2]
[382262974,1756553448524,-480.0,0.00019178,2]
[382262975,1756553448534,-480.0,0.00019178,2]
[382262976,1756553448544,-480.0,0.00019178,2]
[382262977,1756553448553,-480.0,0.00019178,2]
[382262978,1756553448563,-480.0,0.00019178,2]
[382262979,1756553448572,-1199.65,0.00019178,2]
[382262980,1756553448583,-480.0,0.00019178,2]
[382262981,1756553448592,-151.0,0.00019178,2]
[382262982,1756553448602,-634.31,0.00019178,2]
[382262983,1756553448612,-1128.81,0.00019178,2]
[382262984,1756553448622,-480.0,0.00019178,2]
[382262985,1756553448632,-6585.97,0.00019178,2]
[382262986,1756553448642,-1619.63,0.00019178,2]
[382262987,1756553448652,-480.0,0.00019178,2]
[382262988,1756553448661,-1416.92,0.00019178,2]
[382262989,1756553448670,-480.0,0.00019178,2]
[382262990,1756553448680,-480.0,0.00019178,2]
[382262991,1756553448690,-6024.27,0.00019178,2]
[382262992,1756553448700,-529.92,0.00019178,2]
[382262993,1756553448709,-480.0,0.00019178,2]
[382262994,1756553448719,-548.21,0.00019178,2]
[382262995,1756553448728,-589.81,0.00019178,2]
[382262996,1756553448738,-480.0,0.00019178,2]
[382262997,1756553448747,-1278.18,0.00019178,2]
[382262998,1756553448757,-480.0,0.00019178,2]
[382262999,1756553448766,-155.03326374,0.00019178,2]
[382263000,1756553448776,-480.0,0.00019178,2]
[382263001,1756553448786,-480.0,0.00019178,2]
[382263002,1756553448795,-966.05723597,0.00019178,2]
[382263003,1756553449543,-12.84276403,0.00019178,2]
[382263004,1756553449553,-1073.29,0.00019178,2]
[382263005,1756553449563,-653.66723597,0.00019178,2]
[382263006,1756553449582,-3190.58276403,0.00019178,2]
[382263007,1756553449592,-559.45,0.00019178,2]
[382263008,1756553449601,-1754.76,0.00019178,2]
[382263009,1756553449610,-480.0,0.00019178,2]
[382263010,1756553449620,-480.0,0.00019178,2]
[382263011,1756553449629,-2495.49,0.00019178,2]
[382263012,1756553449638,-481.25366214,0.00019178,2]
[382263013,1756553449647,-480.0,0.00019178,2]
[382263014,1756553449656,-521.8,0.00019178,2]
[382263015,1756553449666,-480.0,0.00019178,2]
[382263016,1756553449675,-480.0,0.00019178,2]
[382263017,1756553449684,-690.64,0.00019178,2]
[382263018,1756553449693,-151.0,0.00019178,2]
[382263019,1756553449703,-586.14,0.00019178,2]
[382263020,1756553449711,-151.0,0.00019178,2]
[382263021,1756553449721,-480.0,0.00019178,2]
[382263022,1756553449730,-924.92,0.00019178,2]
[382263023,1756553449740,-480.0,0.00019178,2]
[382263024,1756553449901,-1884.61,0.00019178,2]
[382263025,1756553449912,-480.0,0.00019178,2]
[382263026,1756553449922,-1209.12,0.00019178,2]
[382263027,1756553449931,-480.0,0.00019178,2]
[382263028,1756553449941,-480.0,0.00019178,2]
[382263029,1756553449952,-558.51,0.00019178,2]
[382263030,1756553449962,-2764.55,0.00019178,2]
[382263031,1756553449972,-1105.6,0.00019178,2]
[382263032,1756553449982,-1245.0,0.00019178,2]
[382263033,1756553449991,-480.0,0.00019178,2]
[382263034,1756553450001,-480.0,0.00019178,2]
[382263035,1756553450011,-480.0,0.00019178,2]
[382263036,1756553450021,-480.0,0.00019178,2]
[382263037,1756553450030,-480.0,0.00019178,2]
[382263038,1756553450040,-151.361299,0.00019178,2]
[382263039,1756553450049,-1368.14,0.00019178,2]
[382263040,1756553450059,-689.87,0.00019178,2]
[382263041,1756553450068,-480.0,0.00019178,2]
[382263042,1756553450082,-480.0,0.00019178,2]
[382263043,1756553450091,-480.0,0.00019178,2]
[382263044,1756553450101,-480.0,0.00019178,2]
[382263045,1756553450110,-480.0,0.00019178,2]
[382263046,1756553450120,-480.0,0.00019178,2]
[382263047,1756553450129,-480.0,0.00019178,2]
[382263048,1756553450139,-480.0,0.00019178,2]
[382263049,1756553450148,-1064.06,0.00019178,2]
[382263050,1756553450157,-480.0,0.00019178,2]
[382263051,1756553450167,-553.22,0.00019178,2]
[382263052,1756553450176,-480.0,0.00019178,2]
[382263053,1756553450185,-480.0,0.00019178,2]
[382263054,1756553450195,-480.0,0.00019178,2]
[382263055,1756553450204,-480.0,0.00019178,2]
[382263056,1756553450213,-480.0,0.00019178,2]
[382263057,1756553450223,-480.0,0.00019178,2]
[382263058,1756553450232,-480.0,0.00019178,2]
[382263059,1756553450241,-1372.34,0.00019178,2]
[382263060,1756553450251,-1241.29,0.00019178,2]
[382263061,1756553450260,-480.0,0.00019178,2]
[382263062,1756553450269,-1597.17,0.00019178,2]
[382263063,1756553450279,-1377.82,0.00019178,2]
[382263064,1756553450288,-480.0,0.00019178,2]
[382263065,1756553450297,-480.0,0.00019178,2]
[382263066,1756553450307,-480.0,0.00019178,2]
[382263067,1756553450316,-480.0,0.00019178,2]
[382263068,1756553450325,-700.7,0.00019178,2]
[382263069,1756553450335,-824.05,0.00019178,2]
[382263070,1756553450344,-480.0,0.00019178,2]
[382263071,1756553450353,-1121.99,0.00019178,2]
[382263072,1756553450363,-480.0,0.00019178,2]
[382263073,1756553450372,-1668.86,0.00019178,2]
[382263074,1756553450381,-480.0,0.00019178,2]
[382263075,1756553450391,-480.0,0.00019178,2]
[382263076,1756553450400,-480.0,0.00019178,2]
[382263077,1756553450410,-27450.52507672,0.00019321,2]
[382263078,1756553450420,-151.0,0.00019321,2]
[382263079,1756553450431,-153.454228,0.00019321,2]
[382263080,1756553450440,-151.0,0.00019336,2]
[382263081,1756553450450,-151.0,0.00019336,2]
[382263082,1756553450460,-300.0,0.0001935,20]
[382263083,1756553450469,-300.0,0.0001935,20]
[382263084,1756553450479,-300.0,0.0001935,20]
[382263085,1756553450488,-300.0,0.0001935,20]
[382263086,1756553450498,-300.0,0.0001935,20]
[382263087,1756553450507,-300.0,0.0001935,20]
[382263088,1756553450516,-300.0,0.0001935,20]
[382263089,1756553450526,-300.0,0.0001935,20]
[382263090,1756553450536,-300.0,0.0001935,20]
[382263091,1756553450545,-300.0,0.0001935,20]
[382263092,1756553450554,-300.0,0.0001935,20]
[382263093,1756553450565,-300.0,0.0001935,20]
[382263094,1756553450574,-300.0,0.0001935,20]
[382263095,1756553450583,-300.0,0.0001935,20]
[382263096,1756553450593,-300.0,0.0001935,20]
[382263097,1756553450602,-229.11866079,0.00019399,2]
[382263098,1756553450611,-500.0,0.00019419,2]
[382263099,1756553450621,-502.64486148,0.00019421,2]
[382263100,1756553450632,-503.3808984,0.00019421,2]
[382263101,1756553450643,-500.0,0.00019421,2]
[382263102,1756553450654,-520.39784858,0.00019421,2]
[382263103,1756553450664,-1000.0,0.00019421,2]
[382263104,1756553450673,-500.0,0.00019421,2]
[382263105,1756553450683,-1000.0,0.00019421,2]
[382263106,1756553450693,-518.55572137,0.00019421,2]
[382263107,1756553450702,-500.0,0.00019421,2]
[382263108,1756553450711,-1000.0,0.00019421,2]
[382263109,1756553450721,-1000.0,0.00019421,2]
[382263110,1756553450730,-1000.0,0.00019421,2]
[382263111,1756553450741,-1000.0,0.00019421,2]
[382263112,1756553450750,-1000.0,0.00019421,2]
[382263113,1756553450760,-1000.0,0.00019421,2]
[382263114,1756553450769,-151.0,0.00019421,2]
[382263115,1756553450779,-480.0,0.00019452,2]
[382263116,1756553450788,-480.0,0.00019452,2]
[382263117,1756553450797,-236.09366483,0.00019452,2]
[382263118,1756553450807,-480.0,0.00019452,2]
[382263119,1756553450816,-480.0,0.00019452,2]
[382263120,1756553450825,-480.0,0.00019452,2]
[382263121,1756553450834,-733.53,0.00019452,2]
[382263122,1756553450844,-480.0,0.00019452,2]
[382263123,1756553450853,-480.0,0.00019452,2]
[382263124,1756553450862,-480.0,0.00019452,2]
[382263125,1756553450871,-480.0,0.00019452,2]
[382263126,1756553450882,-480.0,0.00019452,2]
[382263127,1756553450892,-480.0,0.00019452,2]
[382263128,1756553450901,-480.0,0.00019452,2]
[382263129,1756553450911,-480.0,0.00019452,2]
[382263130,1756553450926,-480.0,0.00019452,2]
[382263131,1756553450944,-558.10842049,0.00019452,2]
[382263132,1756553450959,-212.32131276,0.00019452,2]
[382263133,1756553450982,-480.0,0.00019452,2]
[382263134,1756553450998,-480.0,0.00019452,2]
[382263135,1756553451015,-480.0,0.00019452,2]
[382263136,1756553451031,-290.54940696,0.00019452,2]
[382263137,1756553451045,-480.0,0.00019452,2]
[382263138,1756553451061,-480.0,0.00019452,2]
[382263139,1756553451076,-480.0,0.00019452,2]
[382263140,1756553451088,-480.0,0.00019452,2]
[382263141,1756553451103,-480.0,0.00019452,2]
[382263142,1756553451119,-480.0,0.00019452,2]
[382263143,1756553451136,-480.0,0.00019452,2]
[382263144,1756553451152,-480.0,0.00019452,2]
[382263145,1756553451164,-480.0,0.00019452,2]
[382263146,1756553451178,-480.0,0.00019452,2]
[382263147,1756553451195,-480.0,0.00019452,2]
[382263148,1756553451208,-480.0,0.00019452,2]
[382263149,1756553451223,-480.0,0.00019452,2]
[382263150,1756553451236,-480.0,0.00019452,2]
[382263151,1756553451248,-554.21221643,0.00019452,2]
[382263152,1756553451262,-306.1906635,0.00019452,2]
[382263153,1756553451276,-480.0,0.00019452,2]
[382263154,1756553451292,-480.0,0.00019452,2]
[382263155,1756553451305,-593.25,0.00019452,2]
[382263156,1756553451320,-480.0,0.00019452,2]
[382263157,1756553451333,-480.0,0.00019452,2]
[382263158,1756553451346,-480.0,0.00019452,2]
[382263159,1756553451361,-480.0,0.00019452,2]
[382263160,1756553451376,-881.59,0.00019452,2]
[382263161,1756553451392,-480.0,0.00019452,2]
[382263162,1756553451406,-480.0,0.00019452,2]
[382263163,1756553451421,-609.83,0.00019452,2]
[382263164,1756553451434,-498.0,0.00019452,2]
[382263165,1756553451447,-480.0,0.00019452,2]
[382263166,1756553451461,-544.33,0.00019452,2]
[382263167,1756553451475,-480.0,0.00019452,2]
[382263168,1756553451489,-480.0,0.00019452,2]
[382263169,1756553451503,-480.0,0.00019452,2]
[382263170,1756553451518,-480.0,0.00019452,2]
[382263171,1756553451532,-480.0,0.00019452,2]
[382263172,1756553451547,-480.0,0.00019452,2]
[382263173,1756553451562,-638.01,0.00019452,2]
[382263174,1756553451575,-480.0,0.00019452,2]
[382263175,1756553451588,-480.0,0.00019452,2]
[382263176,1756553451601,-480.0,0.00019452,2]
[382263177,1756553451614,-480.0,0.00019452,2]
[382263178,1756553451627,-421.71043997,0.00019452,2]
[382263179,1756553451641,-862.97,0.00019452,2]
[382263180,1756553451655,-480.0,0.00019452,2]
[382263181,1756553451670,-973.04,0.00019452,2]
[382263182,1756553451683,-678.55,0.00019452,2]
[382263183,1756553451698,-949.19,0.00019452,2]
[382263184,1756553451712,-480.0,0.00019452,2]
[382263185,1756553451726,-480.0,0.00019452,2]
[382263186,1756553451739,-480.0,0.00019452,2]
[382263187,1756553451753,-480.0,0.00019452,2]
[382263188,1756553451768,-480.0,0.00019452,2]
[382263189,1756553451783,-480.0,0.00019452,2]
[382263190,1756553451797,-480.0,0.00019452,2]
[382263191,1756553451812,-739.92,0.00019452,2]
[382263192,1756553451826,-542.45,0.00019452,2]
[382263193,1756553451840,-480.0,0.00019452,2]
[382263194,1756553451853,-480.0,0.00019452,2]
[382263195,1756553451866,-480.0,0.00019452,2]
[382263196,1756553451880,-480.0,0.00019452,2]
[382263197,1756553451894,-480.0,0.00019452,2]
[382263198,1756553451907,-310.48,0.00019452,2]
[382263199,1756553451920,-480.0,0.00019452,2]
[382263200,1756553451932,-480.0,0.00019452,2]
[382263201,1756553451946,-480.0,0.00019452,2]
[382263202,1756553451960,-480.0,0.00019452,2]
[382263203,1756553451974,-480.0,0.00019452,2]
[382263204,1756553451988,-480.0,0.00019452,2]
[382263205,1756553452004,-526.77,0.00019452,2]
[382263206,1756553452019,-431.81081596,0.00019452,2]
[382263207,1756553452032,-1428.85,0.00019452,2]
[382263208,1756553452046,-480.0,0.00019452,2]
[382263209,1756553452059,-480.0,0.00019452,2]
[382263210,1756553452074,-635.24,0.00019452,2]
[382263211,1756553452084,-480.0,0.00019452,2]
[382263212,1756553452094,-480.0,0.00019452,2]
[382263213,1756553452103,-480.0,0.00019452,2]
[382263214,1756553452114,-480.0,0.00019452,2]
[382263215,1756553452123,-480.0,0.00019452,2]
[382263216,1756553452133,-480.0,0.00019452,2]
[382263217,1756553452143,-480.0,0.00019452,2]
[382263218,1756553452152,-480.0,0.00019452,2]
[382263219,1756553452163,-493.23,0.00019452,2]
[382263220,1756553452173,-892.47,0.00019452,2]
[382263221,1756553452182,-480.0,0.00019452,2]
[382263222,1756553452191,-1254.79,0.00019452,2]
[382263223,1756553452201,-480.0,0.00019452,2]
[382263224,1756553452211,-547.1,0.00019452,2]
[382263225,1756553452220,-1363.82,0.00019452,2]
[382263226,1756553452230,-818.81,0.00019452,2]
[382263227,1756553452239,-1104.88,0.00019452,2]
[382263228,1756553452249,-480.0,0.00019452,2]
[382263229,1756553452259,-480.0,0.00019452,2]
[382263230,1756553452269,-480.0,0.00019452,2]
[382263231,1756553452279,-480.0,0.00019452,2]
[382263232,1756553452288,-663.5,0.00019452,2]
[382263233,1756553452299,-246.32322888,0.00019452,2]
[382263234,1756553452308,-480.0,0.00019452,2]
[382263235,1756553452318,-480.0,0.00019452,2]
[382263236,1756553452641,-480.0,0.00019452,2]
[382263237,1756553452659,-550.89078202,0.00019452,2]
[382263238,1756553452670,-481.51341074,0.00019452,2]
[382263239,1756553452679,-480.0,0.00019452,2]
[382263240,1756553452688,-480.0,0.00019452,2]
[382263241,1756553452697,-552.54,0.00019452,2]
[382263242,1756553452707,-480.0,0.00019452,2]
[382263243,1756553452716,-480.0,0.00019452,2]
[382263244,1756553452725,-480.0,0.00019452,2]
[382263245,1756553452734,-481.91,0.00019452,2]
[382263246,1756553452743,-379.07152701,0.00019452,2]
[382263247,1756553452753,-480.0,0.00019452,2]
[382263248,1756553452762,-480.0,0.00019452,2]
[382263249,1756553452771,-480.0,0.00019452,2]
[382263250,1756553452780,-480.0,0.00019452,2]
[382263251,1756553452789,-1320.14,0.00019452,2]
[382263252,1756553452799,-765.49,0.00019452,2]
[382263253,1756553452808,-480.0,0.00019452,2]
[382263254,1756553452818,-480.0,0.00019452,2]
[382263255,1756553452827,-1147.8,0.00019452,2]
[382263256,1756553452836,-480.0,0.00019452,2]
[382263257,1756553452846,-480.0,0.00019452,2]
[382263258,1756553452855,-480.0,0.00019452,2]
[382263259,1756553452865,-480.0,0.00019452,2]
[382263260,1756553452874,-480.0,0.00019452,2]
[382263261,1756553452883,-480.0,0.00019452,2]
[382263262,1756553452893,-1388.64,0.00019452,2]
[382263263,1756553452902,-480.0,0.00019452,2]
[382263264,1756553452912,-617.48,0.00019452,2]
[382263265,1756553452921,-481.31,0.00019452,2]
[382263266,1756553452931,-480.0,0.00019452,2]
[382263267,1756553452940,-638.82,0.00019452,2]
[382263268,1756553452949,-480.0,0.00019452,2]
[382263269,1756553452958,-480.0,0.00019452,2]
[382263270,1756553452967,-480.0,0.00019452,2]
[382263271,1756553452977,-1286.28,0.00019452,2]
[382263272,1756553452986,-480.0,0.00019452,2]
[382263273,1756553452996,-514.94,0.00019452,2]
[382263274,1756553453006,-480.0,0.00019452,2]
[382263275,1756553453016,-480.0,0.00019452,2]
[382263276,1756553453025,-1077.57,0.00019452,2]
[382263277,1756553453035,-164.543916,0.00019452,2]
[382263278,1756553453044,-480.000001,0.00019452,2]
[382263279,1756553453054,-480.0,0.00019452,2]
[382263280,1756553453064,-480.0,0.00019452,2]
[382263281,1756553453075,-511.1,0.00019452,2]
[382263282,1756553453084,-480.0,0.00019452,2]
[382263283,1756553453093,-480.0,0.00019452,2]
[382263284,1756553453103,-1642.27,0.00019452,2]
[382263285,1756553453112,-480.0,0.00019452,2]
[382263286,1756553453121,-544.97,0.00019452,2]
[382263287,1756553453131,-480.0,0.00019452,2]
[382263288,1756553453140,-480.0,0.00019452,2]
[382263289,1756553453149,-480.0,0.00019452,2]
[382263290,1756553453159,-480.0,0.00019452,2]
[382263291,1756553453169,-848.64,0.00019452,2]
[382263292,1756553453178,-480.0,0.00019452,2]
[382263293,1756553453187,-1240.36,0.00019452,2]
[382263294,1756553453196,-480.0,0.00019452,2]
[382263295,1756553453205,-480.0,0.00019452,2]
[382263296,1756553453215,-480.0,0.00019452,2]
[382263297,1756553453224,-480.0,0.00019452,2]
[382263298,1756553453234,-480.0,0.00019452,2]
[382263299,1756553453244,-480.0,0.00019452,2]
[382263300,1756553453253,-480.0,0.00019452,2]
[382263301,1756553453262,-480.0,0.00019452,2]
[382263302,1756553453272,-480.0,0.00019452,2]
[382263303,1756553453282,-480.0,0.00019452,2]
[382263304,1756553453291,-480.0,0.00019452,2]
[382263305,1756553453301,-480.0,0.00019452,2]
[382263306,1756553453310,-480.0,0.00019452,2]
[382263307,1756553453321,-480.0,0.00019452,2]
[382263308,1756553453330,-480.0,0.00019452,2]
[382263309,1756553453340,-480.0,0.00019452,2]
[382263310,1756553453354,-480.0,0.00019452,2]
[382263311,1756553453364,-480.0,0.00019452,2]
[382263312,1756553453374,-480.0,0.00019452,2]
[382263313,1756553453383,-480.0,0.00019452,2]
[382263314,1756553453398,-480.0,0.00019452,2]
[382263315,1756553453420,-480.0,0.00019452,2]
[382263316,1756553453438,-480.0,0.00019452,2]
[382263317,1756553453448,-480.0,0.00019452,2]
[382263318,1756553453458,-480.0,0.00019452,2]
[382263319,1756553453467,-1481.17,0.00019452,2]
[382263320,1756553453476,-483.15143235,0.00019452,2]
[382263321,1756553453486,-480.0,0.00019452,2]
[382263322,1756553453496,-480.0,0.00019452,2]
[382263323,1756553453510,-533.98,0.00019452,2]
[382263324,1756553453519,-480.0,0.00019452,2]
[382263325,1756553453530,-480.0,0.00019452,2]
[382263326,1756553453539,-625.54,0.00019452,2]
[382263327,1756553453549,-480.0,0.00019452,2]
[382263328,1756553453558,-480.0,0.00019452,2]
[382263329,1756553453567,-480.0,0.00019452,2]
[382263330,1756553453576,-545.33,0.00019452,2]
[382263331,1756553453586,-480.0,0.00019452,2]
[382263332,1756553453595,-480.0,0.00019452,2]
[382263333,1756553453604,-480.0,0.00019452,2]
[382263334,1756553453613,-507.01,0.00019452,2]
[382263335,1756553453622,-480.0,0.00019452,2]
[382263336,1756553453633,-480.0,0.00019452,2]
[382263337,1756553453642,-480.0,0.00019452,2]
[382263338,1756553453652,-480.0,0.00019452,2]
[382263339,1756553453661,-480.0,0.00019452,2]
[382263340,1756553453670,-480.0,0.00019452,2]
[382263341,1756553453679,-764.41,0.00019452,2]
[382263342,1756553453689,-480.0,0.00019452,2]
[382263343,1756553453698,-480.0,0.00019452,2]
[382263344,1756553453707,-151.0,0.00019452,2]
[382263345,1756553453716,-151.0,0.00019452,2]
[382263346,1756553453726,-151.0,0.00019452,2]
[382263347,1756553453735,-151.0,0.00019452,2]
[382263348,1756553453744,-1222.42,0.00019452,2]
[382263349,1756553453754,-500.0,0.00019452,2]
[382263350,1756553453763,-614.7105157,0.00019452,2]
[382263351,1756553453774,-480.0,0.00019452,2]
[382263352,1756553453784,-804.21,0.00019452,2]
[382263353,1756553453793,-639.24,0.00019452,2]
[382263354,1756553453803,-825.63,0.00019452,2]
[382263355,1756553453812,-1187.44,0.00019452,2]
[382263356,1756553453822,-480.0,0.00019452,2]
[382263357,1756553453831,-480.0,0.00019452,2]
[382263358,1756553453840,-480.0,0.00019452,2]
[382263359,1756553453850,-480.0,0.00019452,2]
[382263360,1756553453859,-661.08,0.00019452,2]
[382263361,1756553453868,-480.0,0.00019452,2]
[382263362,1756553453878,-480.0,0.00019452,2]
[382263363,1756553453887,-752.21,0.00019452,2]
[382263364,1756553453896,-1399.22,0.00019452,2]
[382263365,1756553453906,-480.0,0.00019452,2]
[382263366,1756553453916,-480.0,0.00019452,2]
[382263367,1756553453925,-480.0,0.00019452,2]
[382263368,1756553453934,-480.0,0.00019452,2]
[382263369,1756553453943,-480.0,0.00019452,2]
[382263370,1756553453952,-480.0,0.00019452,2]
[382263371,1756553453965,-480.0,0.00019452,2]
[382263372,1756553453975,-490.33,0.00019452,2]